fUST/lending_fUST_20250816
["ID","MTS","AMOUNT","RATE_DAILY","PERIOD"]
[379460183,1755287443661,-200.0,0.00026022,20]
[379460184,1755287443670,-200.0,0.00026022,20]
[379460185,1755287443679,-200.0,0.00026022,20]
[379460186,1755287443688,-200.0,0.00026022,20]
[379460187,1755287443698,-200.0,0.00026022,20]
[379460188,1755287443708,-200.0,0.00026022,20]
[379460189,1755287443717,-200.0,0.00026022,20]
[379460190,1755287443728,-200.0,0.00026022,20]
[379460191,1755287443737,-292.0,0.00026022,20]
[379460192,1755287443747,-500.0,0.00026028,2]
[379460193,1755287443756,-972.0,0.00026065,2]
[379460194,1755287443765,-408.0,0.00026065,2]
[379460195,1755287443775,-636.0,0.00026065,2]
[379460196,1755287443784,-2152.0,0.00026065,2]
[379460197,1755287443793,-150.0,0.00026065,2]
[379460198,1755287443803,-13371.67895696,0.00026089,2]
[379460200,1755287443812,-9951.7079117,0.00026094,4]
[379460201,1755287443821,-1060.0,0.00026144,2]
[379460202,1755287443832,-12273.87,0.000262,7]
[379460203,1755287443841,-164.3254,0.00026228,2]
[379460204,1755287443850,-500.0,0.00026302,2]
[379460205,1755287443859,-164.3254,0.00026328,2]
[379460206,1755287443869,-704.4126889,0.00026375,2]
[379460207,1755287443878,-164.3254,0.00026428,2]
[379460208,1755287443887,-151.0,0.00026458,7]
[379460209,1755287443896,-1300.0,0.00026485,2]
[379460210,1755287443905,-200.0,0.00026516,2]
[379460211,1755287443914,-2000.0,0.00026516,2]
[379460212,1755287443923,-164.3254,0.00026528,2]
[379460213,1755287443933,-500.0,0.00026576,2]
[379460214,1755287443941,-9951.7079117,0.0002661,5]
[379460215,1755287443950,-164.3254,0.00026628,2]
[379460216,1755287443959,-1160.0,0.00026692,2]
[379460217,1755287443969,-164.3254,0.00026728,2]
[379460218,1755287443978,-1000.0,0.00026733,2]
[379460219,1755287443987,-456.97595022,0.00026752,2]
[379460220,1755287443996,-500.0,0.0002685,2]
[379460221,1755287444006,-2200.0,0.00027,2]
[379460222,1755287444016,-151.0,0.00027019,7]
[379460223,1755287444025,-2500.0,0.00027064,2]
[379460224,1755287444034,-4174.62,0.000271,7]
[379460225,1755287444043,-500.0,0.00027124,2]
[379460226,1755287444052,-9951.7079117,0.00027126,7]
[379460227,1755287444062,-1152.0,0.00027171,2]
[379460228,1755287444071,-208.0,0.0002719,2]
[379460229,1755287444081,-18372.95,0.000272,2]
[379460230,1755287444092,-843.47195277,0.000272,7]
[379460231,1755287444101,-160.0,0.000272,7]
[379460232,1755287444111,-417.15472785,0.000272,7]
[379460233,1755287444121,-232.08354597,0.000272,7]
[379460234,1755287444131,-216.77912109,0.000272,7]
[379460235,1755287444141,-1260.0,0.0002724,2]
[379460236,1755287444150,-558.09506584,0.0002726,18]
[379460237,1755287444161,-151.0,0.00027383,7]
[379460238,1755287444170,-153.43776749,0.00027397,2]
[379460239,1755287444179,-500.0,0.00027397,5]
[379460240,1755287444190,-500.0,0.00027398,2]
[379460241,1755287444200,-2000.0,0.000274,2]
[379460242,1755287444209,-12273.87,0.000274,7]
[379460243,1755287444219,-232.111669,0.000274,10]
[379460244,1755287444228,-1038.54414988,0.000274,2]
[379460245,1755287444238,-1038.54414982,0.00027409,2]
[379460246,1755287444248,-1038.54414982,0.00027417,2]
[379460247,1755287444257,-1038.54414982,0.00027426,2]
[379460248,1755287444267,-500.0,0.00027429,10]
[379460249,1755287444276,-1038.54414982,0.00027434,2]
[379460250,1755287444287,-1038.54414982,0.00027443,2]
[379460251,1755287444297,-1038.54414982,0.00027451,2]
[379460252,1755287444307,-1038.54414982,0.0002746,2]
[379460253,1755287444316,-222.56333,0.00027465,2]
[379460254,1755287444326,-1038.54414982,0.00027468,2]
[379460255,1755287444336,-430.30698584,0.00027473,5]
[379460256,1755287444345,-150.0,0.00027473,5]
[379460258,1755287444354,-150.0,0.00027473,5]
[379460259,1755287444364,-1038.54414982,0.00027477,2]
[379460260,1755287444373,-704.4126889,0.00027477,2]
[379460261,1755287444383,-13371.67895696,0.00027477,2]
[379460262,1755287444392,-151.0,0.00027478,7]
[379460263,1755287444402,-151.0,0.00027478,7]
[379460264,1755287444411,-151.0,0.00027478,7]
[379460265,1755287444422,-370000.0,0.00027481,2]
[379460266,1755287444431,-17328.43605795,0.000275,7]
[379460267,1755287444442,-190.878435,0.000275,2]
[379460268,1755287444452,-500.0,0.00027527,10]
[379460269,1755287444462,-160.0,0.0002754,5]
[379460270,1755287444472,-1287.57,0.00027554,2]
[379460271,1755287444482,-151.0,0.00027562,7]
[379460272,1755287444491,-151.0,0.00027562,7]
[379460273,1755287444502,-688.077715,0.00027562,7]
[379460274,1755287444511,-688.077715,0.00027562,7]
[379460275,1755287444521,-688.077715,0.00027562,7]
[379460276,1755287444530,-688.077715,0.00027562,7]
[379460277,1755287444539,-688.077715,0.00027562,7]
[379460278,1755287444549,-688.077715,0.00027562,7]
[379460279,1755287444559,-688.077715,0.00027562,7]
[379460280,1755287444568,-688.077715,0.00027562,7]
[379460281,1755287444577,-688.077715,0.00027562,7]
[379460282,1755287444587,-688.077715,0.00027562,7]
[379460283,1755287444597,-688.077715,0.00027562,7]
[379460284,1755287444606,-688.077715,0.00027562,7]
[379460285,1755287444616,-688.077715,0.00027562,7]
[379460286,1755287444624,-688.077715,0.00027562,7]
[379460287,1755287444634,-688.077715,0.00027562,7]
[379460288,1755287444643,-688.077715,0.00027562,7]
[379460289,1755287444653,-688.077715,0.00027562,7]
[379460290,1755287444662,-688.077715,0.00027562,7]
[379460291,1755287444671,-688.077715,0.00027562,7]
[379460292,1755287444681,-688.07772,0.00027562,7]
[379460293,1755287444690,-151.0,0.00027562,7]
[379460294,1755287444699,-151.0,0.00027562,7]
[379460295,1755287444709,-151.0,0.00027562,7]
[379460296,1755287444718,-151.0,0.00027562,7]
[379460297,1755287444727,-151.0,0.00027562,7]
[379460298,1755287444737,-151.0,0.00027562,7]
[379460299,1755287444747,-151.0,0.00027562,7]
[379460300,1755287444756,-151.0,0.00027562,7]
[379460301,1755287444766,-151.0,0.00027562,7]
[379460302,1755287444776,-151.0,0.00027562,7]
[379460303,1755287444785,-151.0,0.00027562,7]
[379460304,1755287444794,-151.0,0.00027562,7]
[379460305,1755287444803,-151.0,0.00027562,7]
[379460306,1755287444812,-151.0,0.00027562,7]
[379460307,1755287444821,-151.0,0.00027562,7]
[379460308,1755287444830,-235.0,0.00027562,7]
[379460309,1755287444839,-208.0,0.0002757,30]
[379460310,1755287444848,-151.0,0.00027571,7]
[379460311,1755287444858,-212.334282,0.00027571,7]
[379460312,1755287444867,-500.0,0.00027573,5]
[379460313,1755287444876,-2263.54613032,0.00027576,2]
[379460314,1755287444886,-36025.38146984,0.00027577,20]
[379460315,1755287444895,-498.0,0.00027577,7]
[379460316,1755287444904,-153.58013253,0.00027577,7]
[379460317,1755287444914,-384.10988881,0.00027577,2]
[379460318,1755287444922,-170047.03702782,0.00027577,20]
[379460319,1755287444931,-144862.40606284,0.00027577,20]
[379460320,1755287444940,-238.95382303,0.00027577,10]
[379460321,1755287444949,-3803.2908113,0.00027577,5]
[379460322,1755287444958,-202411.6446135,0.00027577,20]
[379460323,1755287444968,-728.02934102,0.00027577,35]
[379460324,1755287444977,-601.05887993,0.00027577,5]
[379460325,1755287444986,-171710.50573176,0.00027577,20]
[379460326,1755287444995,-337741.72327298,0.00027577,20]
[379460327,1755287445004,-695128.81768918,0.00027577,20]
[379460328,1755287445013,-156.8,0.00027577,2]
[379460329,1755287445022,-155.53434155,0.00027577,30]
[379460330,1755287445032,-873.43338646,0.00027577,35]
[379460331,1755287445041,-149.999999,0.00027577,2]
[379460332,1755287445050,-100017.30859604,0.00027577,2]
[379460333,1755287445059,-121986.1801365,0.00027577,30]
[379460334,1755287445458,-5473.99,0.00020855,10]
[379460335,1755287445468,-207.20873958,0.000256,3]
[379460336,1755287445477,-14360.85394491,0.00027577,30]
[379460337,1755287445513,-82536.28369088,0.00027577,20]
[379460338,1755287445628,-1032.2383806,0.00019025,2]
[379460339,1755287445638,-8657.14723378,0.00023729,2]
[379460340,1755287445650,-8657.14723378,0.00023798,2]
[379460341,1755287445659,-184276.44924312,0.00027577,20]
[379460342,1755287445669,-159.56937065,0.00027577,30]
[379460343,1755287445678,-71830.17008528,0.00027577,20]
[379460348,1755287446269,-31.7220775,0.00027577,20]
[379460973,1755288053009,157.300693,0.00013699,2]
[379460987,1755288369011,177.296554,0.00027397,120]
[379461130,1755288631865,-195.35379498,0.00018426,2]
[379461131,1755288631875,-300.0,0.00018442,2]
[379461132,1755288631885,-167.0,0.00018442,2]
[379461133,1755288631895,-1646.06226576,0.00018443,2]
[379461155,1755288638554,-5791.08486029,0.00018443,2]
[379461156,1755288638589,-7811.55061975,0.00018443,2]
[379461157,1755288638600,-615.800758,0.00018517,2]
[379461158,1755288638610,-3735.7925242,0.00018523,2]
[379461159,1755288638619,-1037.3756378,0.00018526,2]
[379461160,1755288638629,-1084.4068818,0.00018528,2]
[379461161,1755288638640,-582.73060463,0.00019427,2]
[379461162,1755288638650,-340.35744869,0.00019473,2]
[379461163,1755288638660,-160.0,0.00019512,2]
[379461164,1755288638670,-242.0,0.00019525,2]
[379461165,1755288638680,-500.0,0.00019526,2]
[379461166,1755288638690,-250.0,0.00019526,2]
[379461167,1755288638700,-427.8446499,0.00019526,2]
[379461168,1755288638710,-257.4915,0.00019526,2]
[379461169,1755288638719,-500.0,0.00019526,2]
[379461170,1755288638729,-500.0,0.00019526,2]
[379461171,1755288638739,-500.0,0.00019526,2]
[379461172,1755288638749,-651.20822346,0.00019526,2]
[379461173,1755288638759,-500.0,0.00019526,2]
[379461174,1755288638768,-28084.8537935,0.00019526,2]
[379461175,1755288638778,-269.23524514,0.00019527,2]
[379461176,1755288638787,-500.0,0.00019527,2]
[379461177,1755288638797,-500.0,0.00019527,2]
[379461178,1755288638807,-500.0,0.00019527,2]
[379461179,1755288638816,-500.0,0.00019527,2]
[379461180,1755288638826,-500.0,0.00019527,2]
[379461181,1755288638835,-500.0,0.00019527,2]
[379461182,1755288638844,-500.0,0.00019527,2]
[379461183,1755288638854,-500.0,0.00019527,2]
[379461184,1755288638863,-500.0,0.00019527,2]
[379461185,1755288638873,-500.0,0.00019527,2]
[379461186,1755288638882,-500.0,0.00019527,2]
[379461187,1755288638892,-500.0,0.00019527,2]
[379461188,1755288638901,-500.0,0.00019527,2]
[379461189,1755288638911,-500.0,0.00019527,2]
[379461190,1755288638920,-500.0,0.00019527,2]
[379461191,1755288638929,-335.99981688,0.00019527,2]
[379461192,1755288638939,-500.0,0.00019527,2]
[379461193,1755288638949,-500.0,0.00019527,2]
[379461194,1755288638958,-500.0,0.00019527,2]
[379461195,1755288638968,-500.0,0.00019527,2]
[379461196,1755288638978,-500.0,0.00019527,2]
[379461197,1755288638987,-500.0,0.00019527,2]
[379461198,1755288638997,-500.0,0.00019527,2]
[379461199,1755288639006,-500.0,0.00019527,2]
[379461200,1755288639016,-213.17558614,0.00019527,2]
[379461201,1755288639026,-252.07307875,0.00019527,2]
[379461202,1755288639035,-197813.40256035,0.00019528,2]
[379461203,1755288639044,-503.90787643,0.00019573,2]
[379461204,1755288639054,-500.0,0.00019573,2]
[379461205,1755288639063,-211.57959969,0.00019573,2]
[379461206,1755288639073,-500.0,0.00019573,2]
[379461207,1755288639082,-500.0,0.00019573,2]
[379461208,1755288639093,-500.0,0.00019573,2]
[379461209,1755288639102,-500.0,0.00019573,2]
[379461210,1755288639111,-500.0,0.00019573,2]
[379461211,1755288639121,-500.0,0.00019573,2]
[379461212,1755288639131,-509.4840268,0.00019573,2]
[379461213,1755288639141,-500.0,0.00019573,2]
[379461214,1755288639151,-466.04331015,0.00019573,2]
[379461215,1755288639161,-500.0,0.00019573,2]
[379461216,1755288639171,-500.0,0.00019573,2]
[379461217,1755288639182,-185.94231455,0.00019573,2]
[379461218,1755288639191,-500.0,0.00019573,2]
[379461219,1755288639200,-599.82771388,0.00019573,2]
[379461220,1755288639210,-500.0,0.00019573,2]
[379461221,1755288639219,-502.43706856,0.00019573,2]
[379461222,1755288639228,-500.0,0.00019573,2]
[379461223,1755288639239,-500.0,0.00019573,2]
[379461224,1755288639250,-230.45188073,0.00019822,2]
[379461225,1755288639261,-177.952453,0.00019863,2]
[379461226,1755288639271,-8199.79772874,0.000199,2]
[379461227,1755288639281,-200.0,0.00019915,20]
[379461228,1755288639290,-200.0,0.00019915,20]
[379461229,1755288639300,-200.0,0.00019915,20]
[379461230,1755288639310,-200.0,0.00019915,20]
[379461231,1755288639319,-200.0,0.00019915,20]
[379461232,1755288639329,-200.0,0.00019915,20]
[379461233,1755288639339,-420.0,0.00020113,2]
[379461234,1755288639348,-1019.75845652,0.000204,2]
[379461235,1755288639358,-8199.79772868,0.00020416,2]
[379461236,1755288639367,-582.73060459,0.00020579,2]
[379461238,1755288639376,-340.35744866,0.00020744,2]
[379461240,1755288639386,-843.47195277,0.00020868,2]
[379461241,1755288639396,-160.0,0.00020868,2]
[379461242,1755288639406,-216.77912109,0.00020868,2]
[379461243,1755288639417,-160.0,0.00020868,2]
[379461244,1755288639429,-232.08354597,0.00020868,2]
[379461246,1755288639439,-462.0440047,0.00020872,2]
[379461248,1755288639450,-160.0,0.00020872,2]
[379461250,1755288639460,-8199.79772868,0.00020932,2]
[379461253,1755288639470,-8199.79772868,0.00021448,2]
[379461255,1755288639479,-309.6,0.00021559,2]
[379461257,1755288639489,-198.06,0.00021686,2]
[379461260,1755288639503,-582.73060459,0.0002173,2]
[379461262,1755288639514,-200.0,0.00021867,20]
[379461264,1755288639523,-200.0,0.00021867,20]
[379461266,1755288639533,-200.0,0.00021867,20]
[379461269,1755288639543,-200.0,0.00021867,20]
[379461272,1755288639553,-200.0,0.00021867,20]
[379461273,1755288639563,-200.0,0.00021867,20]
[379461275,1755288639573,-200.0,0.00021867,20]
[379461277,1755288639583,-280.0,0.00021867,20]
[379461279,1755288639592,-22301.80868152,0.000219,2]
[379461282,1755288639603,-587.0,0.00021936,2]
[379461284,1755288639613,-8199.79772868,0.00021965,2]
[379461285,1755288639623,-158.67,0.00022,7]
[379461286,1755288639632,-3339.7,0.00022,7]
[379461287,1755288639642,-13808.1,0.00022,7]
[379461288,1755288639652,-160.0,0.00022,7]
[379461289,1755288639661,-340.35744866,0.00022015,2]
[379461290,1755288639670,-160.0,0.00022409,2]
[379461291,1755288639679,-972.0,0.00022445,2]
[379461292,1755288639689,-636.0,0.00022445,2]
[379461293,1755288639698,-2152.0,0.00022445,2]
[379461294,1755288639708,-8199.79772868,0.00022481,2]
[379461295,1755288639718,-3000.0,0.000225,2]
[379461296,1755288639728,-3000.0,0.0002251,2]
[379461297,1755288639738,-3000.0,0.0002252,2]
[379461298,1755288639748,-3000.0,0.0002253,2]
[379461300,1755288639757,-3000.0,0.0002254,2]
[379461301,1755288639767,-3000.0,0.0002255,2]
[379461302,1755288639777,-3000.0,0.0002256,2]
[379461303,1755288639786,-3000.0,0.0002257,2]
[379461304,1755288639795,-3000.0,0.0002258,2]
[379461305,1755288639806,-3000.0,0.0002259,2]
[379461307,1755288639816,-3000.0,0.000226,2]
[379461309,1755288639826,-500.0,0.000226,2]
[379461310,1755288639836,-3000.0,0.0002261,2]
[379461311,1755288639846,-341.067,0.0002261,2]
[379461312,1755288639856,-3000.0,0.0002262,2]
[379461313,1755288639866,-3000.0,0.0002263,2]
[379461314,1755288639877,-3000.0,0.0002264,2]
[379461315,1755288639886,-3000.0,0.0002265,2]
[379461316,1755288639897,-3000.0,0.0002266,2]
[379461317,1755288639907,-3000.0,0.0002267,2]
[379461318,1755288639917,-3000.0,0.0002268,2]
[379461319,1755288639927,-3000.0,0.0002269,2]
[379461320,1755288639938,-3000.0,0.000227,2]
[379461321,1755288639947,-203.84,0.000227,2]
[379461322,1755288639956,-3000.0,0.0002271,2]
[379461323,1755288639966,-3000.0,0.0002272,2]
[379461324,1755288639975,-3000.0,0.0002273,2]
[379461325,1755288639985,-3000.0,0.0002274,2]
[379461326,1755288639994,-3000.0,0.0002275,2]
[379461327,1755288640004,-3000.0,0.0002276,2]
[379461328,1755288640015,-3580.253675,0.0002277,2]
[379461329,1755288640025,-582.73060459,0.00022882,2]
[379461330,1755288640034,-260.0,0.00022957,2]
[379461331,1755288640045,-8199.79772868,0.00022997,2]
[379461332,1755288640055,-160.0,0.00023,2]
[379461333,1755288640064,-340.35744866,0.00023286,2]
[379461334,1755288640075,-360.0,0.00023505,2]
[379461335,1755288640085,-8199.79772868,0.00023513,2]
[379461336,1755288640095,-619.2,0.00023519,2]
[379461337,1755288640105,-151.0,0.00023778,2]
[379461338,1755288640115,-151.0,0.00023778,2]
[379461339,1755288640125,-151.0,0.00023778,2]
[379461340,1755288640135,-151.0,0.000238,6]
[379461341,1755288640147,-823.0,0.00023924,2]
[379461342,1755288640156,-843.47195277,0.00024,7]
[379461343,1755288640166,-417.15472785,0.00024,7]
[379461344,1755288640175,-160.0,0.00024,7]
[379461345,1755288640185,-160.0,0.00024,7]
[379461346,1755288640195,-232.08354597,0.00024,7]
[379461347,1755288640205,-216.77912109,0.00024,7]
[379461348,1755288640215,-200.0,0.00024009,20]
[379461349,1755288640225,-200.0,0.00024009,20]
[379461350,1755288640235,-200.0,0.00024009,20]
[379461351,1755288640247,-200.0,0.00024009,20]
[379461352,1755288640257,-200.0,0.00024009,20]
[379461353,1755288640267,-200.0,0.00024009,20]
[379461354,1755288640279,-200.0,0.00024009,20]
[379461355,1755288640288,-200.0,0.00024009,20]
[379461356,1755288640298,-200.0,0.00024009,20]
[379461357,1755288640308,-200.0,0.00024009,20]
[379461358,1755288640318,-350.0,0.00024009,20]
[379461359,1755288640328,-151.0,0.00024015,2]
[379461360,1755288640337,-2183.31810187,0.00024015,2]
[379461361,1755288640347,-151.0,0.00024015,2]
[379461362,1755288640359,-151.0,0.00024015,2]
[379461363,1755288640368,-500.0,0.00024015,2]
[379461364,1755288640378,-151.0,0.00024015,2]
[379461366,1755288640388,-500.0,0.00024015,2]
[379461367,1755288640402,-151.0,0.00024015,2]
[379461369,1755288640412,-500.0,0.00024015,2]
[379461371,1755288640428,-151.0,0.00024015,2]
[379461373,1755288640439,-500.0,0.00024015,2]
[379461375,1755288640448,-151.0,0.00024015,2]
[379461377,1755288640460,-500.0,0.00024015,2]
[379461379,1755288640473,-151.0,0.00024015,2]
[379461381,1755288640483,-500.0,0.00024015,2]
[379461383,1755288640495,-151.0,0.00024015,2]
[379461385,1755288640511,-500.0,0.00024015,2]
[379461387,1755288640521,-1746.03377568,0.00024015,2]
[379461389,1755288640531,-151.0,0.00024015,2]
[379461391,1755288640541,-220.41087772,0.00024015,2]
[379461393,1755288640551,-151.0,0.00024015,2]
[379461395,1755288640561,-151.0,0.00024015,2]
[379461397,1755288640571,-151.0,0.00024015,2]
[379461399,1755288640581,-151.0,0.00024015,2]
[379461401,1755288640591,-151.0,0.00024015,2]
[379461403,1755288640600,-151.0,0.00024015,2]
[379461405,1755288640610,-151.0,0.00024015,2]
[379461407,1755288640620,-151.0,0.00024015,2]
[379461409,1755288640629,-8199.79772868,0.00024029,2]
[379461420,1755288640732,-582.73060459,0.00024033,2]
[379461422,1755288640742,-151.0,0.00024052,2]
[379461424,1755288640751,-460.0,0.00024053,2]
[379461426,1755288640760,-415.98029039,0.0002407,2]
[379461428,1755288640770,-3339.7,0.000241,7]
[379461430,1755288640779,-13808.1,0.000241,7]
[379461432,1755288640788,-1300.0,0.00024293,2]
[379461434,1755288640797,-198.0,0.00024326,2]
[379461436,1755288640806,-151.0,0.00024349,5]
[379461438,1755288640816,-151.0,0.000244,9]
[379461440,1755288640826,-8199.79772868,0.00024545,2]
[379461442,1755288640835,-340.35744866,0.00024557,2]
[379461444,1755288640844,-560.0,0.00024601,2]
[379461445,1755288640853,-500.0,0.00024657,60]
[379461448,1755288640864,-500.0,0.00024657,60]
[379461450,1755288640873,-503.87850505,0.00024657,60]
[379461452,1755288640883,-500.0,0.00024657,60]
[379461454,1755288640893,-506.39407875,0.00024657,60]
[379461456,1755288640903,-579.30904571,0.00024657,60]
[379461458,1755288640912,-1263.68,0.00024657,60]
[379461460,1755288640922,-1263.68,0.00024657,60]
[379461461,1755288640931,-1263.68,0.00024657,60]
[379461463,1755288640940,-1263.68,0.00024657,60]
[379461465,1755288640950,-1263.68,0.00024657,60]
[379461467,1755288640959,-1263.68,0.00024657,60]
[379461469,1755288640968,-1263.68,0.00024657,60]
[379461471,1755288640977,-1263.68,0.00024657,60]
[379461473,1755288640987,-1263.68,0.00024657,60]
[379461475,1755288640996,-1263.68,0.00024657,60]
[379461477,1755288641005,-1263.68,0.00024657,60]
[379461479,1755288641014,-500.0,0.00024657,60]
[379461481,1755288641024,-500.0,0.00024657,60]
[379461483,1755288641033,-500.0,0.00024657,60]
[379461485,1755288641043,-500.0,0.00024657,60]
[379461487,1755288641052,-500.0,0.00024657,60]
[379461489,1755288641062,-500.0,0.00024657,60]
[379461491,1755288641071,-500.0,0.00024657,60]
[379461493,1755288641080,-500.0,0.00024657,60]
[379461495,1755288641089,-500.0,0.00024657,60]
[379461497,1755288641099,-500.0,0.00024657,60]
[379461499,1755288641108,-500.0,0.00024657,60]
[379461500,1755288641118,-500.0,0.00024657,60]
[379461502,1755288641127,-460.0,0.00024657,2]
[379461504,1755288641136,-500.0,0.00024657,60]
[379461506,1755288641145,-500.0,0.00024657,60]
[379461508,1755288641155,-500.0,0.00024657,60]
[379461510,1755288641164,-500.0,0.00024657,60]
[379461512,1755288641174,-500.0,0.00024657,60]
[379461514,1755288641183,-500.0,0.00024657,60]
[379461516,1755288641198,-198.10840785,0.00024657,60]
[379461518,1755288641214,-500.0,0.00024657,60]
[379461520,1755288641224,-500.0,0.00024657,60]
[379461522,1755288641233,-200.0,0.00024658,15]
[379461524,1755288641241,-380.0,0.00024658,2]
[379461526,1755288641251,-200.0,0.00024658,2]
[379461528,1755288641261,-151.0,0.00024658,2]
[379461530,1755288641270,-151.0,0.00024658,2]
[379461532,1755288641279,-151.0,0.00024658,2]
[379461533,1755288641288,-151.0,0.00024658,2]
[379461535,1755288641297,-151.0,0.00024658,2]
[379461537,1755288641307,-235.23179678,0.00024658,2]
[379461539,1755288641316,-151.0,0.00024658,2]
[379461541,1755288641326,-151.0,0.00024658,2]
[379461543,1755288641335,-151.0,0.00024658,2]
[379461545,1755288641344,-151.0,0.00024658,2]
[379461547,1755288641355,-151.0,0.00024658,2]
[379461548,1755288641364,-151.0,0.00024658,2]
[379461549,1755288641374,-151.0,0.00024658,2]
[379461550,1755288641384,-151.0,0.00024658,2]
[379461551,1755288641393,-151.0,0.00024658,2]
[379461552,1755288641403,-151.0,0.00024658,2]
[379461553,1755288641412,-151.0,0.00024658,2]
[379461554,1755288641425,-151.0,0.00024658,2]
[379461555,1755288641434,-151.0,0.00024658,2]
[379461556,1755288641444,-151.0,0.00024658,2]
[379461557,1755288641453,-151.0,0.00024658,2]
[379461558,1755288641463,-151.0,0.00024658,2]
[379461559,1755288641472,-151.0,0.00024658,2]
[379461560,1755288641481,-151.0,0.00024658,2]
[379461561,1755288641490,-280.27212249,0.00024658,2]
[379461562,1755288641499,-500.0,0.00024658,2]
[379461563,1755288641509,-22301.80868151,0.00024689,2]
[379461564,1755288641518,-1263.68,0.00024699,60]
[379461565,1755288641527,-500.0,0.00024699,60]
[379461566,1755288641537,-5550.34001896,0.000247,7]
[379461567,1755288641547,-592.10698436,0.00024773,2]
[379461568,1755288641556,-500.0,0.00024773,2]
[379461569,1755288641566,-150.0,0.00024773,2]
[379461570,1755288641575,-500.0,0.00024773,2]
[379461571,1755288641584,-500.88930733,0.00024773,2]
[379461572,1755288641594,-452.59136052,0.00024773,2]
[379461573,1755288641603,-1263.68,0.00024799,60]
[379461574,1755288641613,-500.0,0.00024799,60]
[379461575,1755288641622,-500.0,0.00024799,60]
[379461576,1755288641632,-500.0,0.00024799,60]
[379461577,1755288641641,-500.0,0.00024799,60]
[379461578,1755288641650,-500.0,0.00024799,60]
[379461579,1755288641659,-22966.19,0.000248,2]
[379461580,1755288641668,-14718.4229733,0.000248,2]
[379461581,1755288641677,-1038.54414988,0.00024832,2]
[379461582,1755288641687,-155.18,0.00024833,7]
[379461583,1755288641696,-500.0,0.00024872,60]
[379461584,1755288641705,-500.0,0.00024873,2]
[379461585,1755288641715,-500.0,0.00024873,2]
[379461586,1755288641724,-500.0,0.00024873,2]
[379461587,1755288641734,-500.0,0.00024873,2]
[379461588,1755288641743,-500.0,0.00024873,2]
[379461589,1755288641753,-500.0,0.00024873,2]
[379461590,1755288641763,-150.68302437,0.00024873,2]
[379461591,1755288641772,-150.0,0.00024873,2]
[379461592,1755288641782,-500.0,0.00024873,2]
[379461593,1755288641791,-500.0,0.00024873,2]
[379461594,1755288641801,-151.0,0.00024888,5]
[379461595,1755288641811,-981.22819822,0.00024889,2]
[379461596,1755288641820,-473.2,0.00024889,60]
[379461597,1755288641830,-3924.91279288,0.0002489,2]
[379461598,1755288641840,-1263.68,0.00024899,60]
[379461599,1755288641850,-1263.68,0.00024899,60]
[379461600,1755288641860,-1263.68,0.00024899,60]
[379461601,1755288641870,-1263.68,0.00024899,60]
[379461602,1755288641880,-1263.68,0.00024899,60]
[379461603,1755288641890,-1263.68,0.00024899,60]
[379461604,1755288641903,-1263.68,0.00024899,60]
[379461605,1755288641913,-1263.68,0.00024899,60]
[379461606,1755288641923,-1263.68,0.00024899,60]
[379461607,1755288641932,-1263.68,0.00024899,60]
[379461608,1755288641942,-1263.71,0.00024899,60]
[379461609,1755288641951,-898763.824229,0.000249,2]